[Event "Titled Tuesday Blitz January 25 2022"]
[White "Evdokimov, Alexander A."]
[Black "Guliev, Logman"]
[WhiteFideId "4139275"]
[BlackFideId "13400061"]
[WhiteElo "2444"]
[BlackElo "2128"]
[Result "1-0"]
[Round "06"]
[TimeControl "180+1"]
[Date "2022.01.26"]
[WhiteClock "0:00:47"]
[BlackClock "0:00:06"]

1. Nf3 {[%clk 0:03:00]}  Nf6 {[%clk 0:02:57]} 2. g3 {[%clk 0:03:01]}  g6 {[%clk 0:02:57]} 3. Bg2 {[%clk 0:03:02]}  Bg7 {[%clk 0:02:58]} 4. O-O {[%clk 0:03:03]}  O-O {[%clk 0:02:58]} 5. d4 {[%clk 0:03:03]}  d5 {[%clk 0:02:57]} 6. c4 {[%clk 0:03:02]}  c6 {[%clk 0:02:57]} 7. Nc3 {[%clk 0:03:02]}  dxc4 {[%clk 0:02:55]} 8. a4 {[%clk 0:03:00]}  Na6 {[%clk 0:02:49]} 9. Ne5 {[%clk 0:03:00]}  Be6 {[%clk 0:02:46]} 10. e4 {[%clk 0:02:59]}  Nb4 {[%clk 0:02:37]} 11. Be3 {[%clk 0:02:52]}  Nd7 {[%clk 0:02:33]} 12. Nf3 {[%clk 0:02:52]}  a5 {[%clk 0:02:26]} 13. Ng5 {[%clk 0:02:49]}  Nf6 {[%clk 0:01:54]} 14. Nxe6 {[%clk 0:02:48]}  fxe6 {[%clk 0:01:55]} 15. Qe2 {[%clk 0:02:35]}  Nd3 {[%clk 0:01:27]} 16. b3 {[%clk 0:02:33]}  e5 {[%clk 0:01:27]} 17. dxe5 {[%clk 0:02:31]}  Nxe5 {[%clk 0:01:24]} 18. Rad1 {[%clk 0:02:26]}  Qc8 {[%clk 0:01:16]} 19. bxc4 {[%clk 0:02:25]}  Qe6 {[%clk 0:01:13]} 20. c5 {[%clk 0:02:23]}  Qc4 {[%clk 0:01:00]} 21. Bd4 {[%clk 0:02:07]}  Nfg4 {[%clk 0:00:49]} 22. Qxc4+ {[%clk 0:01:43]}  Nxc4 {[%clk 0:00:49]} 23. Bxg7 {[%clk 0:01:44]}  Kxg7 {[%clk 0:00:48]} 24. Rd7 {[%clk 0:01:37]}  Rf7 {[%clk 0:00:42]} 25. Rxb7 {[%clk 0:01:25]}  Nd2 {[%clk 0:00:39]} 26. Rd1 {[%clk 0:01:17]}  Rxf2 {[%clk 0:00:34]} 27. Rxe7+ {[%clk 0:01:07]}  Kf6 {[%clk 0:00:30]} 28. Rd7 {[%clk 0:01:07]}  Nf3+ {[%clk 0:00:16]} 29. Bxf3 {[%clk 0:01:05]}  Rxf3 {[%clk 0:00:16]} 30. Ne2 {[%clk 0:00:52]}  Ne3 {[%clk 0:00:13]} 31. Nd4 {[%clk 0:00:50]}  Rxg3+ {[%clk 0:00:11]} 32. hxg3 {[%clk 0:00:50]}  Nxd1 {[%clk 0:00:12]} 33. e5+ {[%clk 0:00:51]}  Kg5 {[%clk 0:00:11]} 34. Ne6+ {[%clk 0:00:48]}  Kf5 {[%clk 0:00:12]} 35. Ng7+ {[%clk 0:00:47]}  Kxe5 {[%clk 0:00:12]} 36. Rxd1 {[%clk 0:00:48]}  Rg8 {[%clk 0:00:11]} 37. Rd7 {[%clk 0:00:46]}  Kf6 {[%clk 0:00:12]} 38. Rc7 {[%clk 0:00:45]}  Rxg7 {[%clk 0:00:12]} 39. Rxc6+ {[%clk 0:00:46]}  Ke5 {[%clk 0:00:12]} 40. Ra6 {[%clk 0:00:46]}  Rc7 {[%clk 0:00:11]} 41. Rxa5 {[%clk 0:00:46]}  Kd4 {[%clk 0:00:12]} 42. Kg2 {[%clk 0:00:44]}  Rxc5 {[%clk 0:00:12]} 43. Rxc5 {[%clk 0:00:44]}  Kxc5 {[%clk 0:00:12]} 44. Kf3 {[%clk 0:00:45]}  h6 {[%clk 0:00:09]} 45. Kf4 {[%clk 0:00:45]}  Kb4 {[%clk 0:00:09]} 46. Ke5 {[%clk 0:00:45]}  Kxa4 {[%clk 0:00:05]} 47. Kf6 {[%clk 0:00:46]}  g5 {[%clk 0:00:05]} 48. Kg6 {[%clk 0:00:47]}  Kb5 {[%clk 0:00:05]} 49. Kxh6 {[%clk 0:00:47]}  g4 {[%clk 0:00:06]} 50. Kg5 {[%clk 0:00:47]} 1-0


[Site "https://www.chess.com"]

[Event "Titled Tuesday Blitz January 25 2022"]
[White "Ezat, Mohamed"]
[Black "Orlov, Georgi"]
[WhiteFideId "10600906"]
[BlackFideId "2011271"]
[WhiteElo "2386"]
[BlackElo "2453"]
[Result "1/2-1/2"]
[Round "06"]
[TimeControl "180+1"]
[Date "2022.01.26"]
[WhiteClock "0:00:12"]
[BlackClock "0:00:09"]

1. d4 {[%clk 0:03:00]}  Nf6 {[%clk 0:02:59]} 2. Nf3 {[%clk 0:02:59]}  e6 {[%clk 0:02:59]} 3. e3 {[%clk 0:02:53]}  b6 {[%clk 0:02:56]} 4. Bd3 {[%clk 0:02:52]}  Bb7 {[%clk 0:02:57]} 5. Nbd2 {[%clk 0:02:52]}  c5 {[%clk 0:02:56]} 6. O-O {[%clk 0:02:52]}  Be7 {[%clk 0:02:54]} 7. b3 {[%clk 0:02:51]}  O-O {[%clk 0:02:50]} 8. Bb2 {[%clk 0:02:51]}  d6 {[%clk 0:02:47]} 9. c4 {[%clk 0:02:51]}  Nbd7 {[%clk 0:02:45]} 10. Rc1 {[%clk 0:02:51]}  Qc7 {[%clk 0:02:43]} 11. Re1 {[%clk 0:02:51]}  Rfe8 {[%clk 0:02:40]} 12. Qe2 {[%clk 0:02:50]}  Nf8 {[%clk 0:02:33]} 13. Nf1 {[%clk 0:02:50]}  Ng6 {[%clk 0:02:32]} 14. Ng3 {[%clk 0:02:49]}  Bc6 {[%clk 0:02:29]} 15. Ng5 {[%clk 0:02:39]}  Qb7 {[%clk 0:02:23]} 16. f4 {[%clk 0:01:34]}  cxd4 {[%clk 0:02:22]} 17. Bxd4 {[%clk 0:01:32]}  e5 {[%clk 0:02:22]} 18. fxe5 {[%clk 0:01:29]}  dxe5 {[%clk 0:02:21]} 19. Bb2 {[%clk 0:01:29]}  Bc5 {[%clk 0:02:16]} 20. Kh1 {[%clk 0:01:28]}  Nh4 {[%clk 0:02:06]} 21. e4 {[%clk 0:01:14]}  Ng6 {[%clk 0:02:05]} 22. Qf3 {[%clk 0:01:02]}  Rad8 {[%clk 0:01:58]} 23. Nf5 {[%clk 0:01:00]}  h6 {[%clk 0:01:53]} 24. Nh3 {[%clk 0:00:57]}  Rxd3 {[%clk 0:01:46]} 25. Qxd3 {[%clk 0:00:56]}  Bxe4 {[%clk 0:01:46]} 26. Qf1 {[%clk 0:00:48]}  Qd7 {[%clk 0:01:40]} 27. Nxh6+ {[%clk 0:00:41]}  gxh6 {[%clk 0:01:39]} 28. Qxf6 {[%clk 0:00:41]}  Bxg2+ {[%clk 0:01:27]} 29. Kxg2 {[%clk 0:00:39]}  Qg4+ {[%clk 0:01:27]} 30. Kh1 {[%clk 0:00:39]}  Qxh3 {[%clk 0:01:26]} 31. Rc3 {[%clk 0:00:31]}  Qd7 {[%clk 0:01:08]} 32. Rg3 {[%clk 0:00:25]}  Re6 {[%clk 0:01:01]} 33. Qf5 {[%clk 0:00:21]}  Qc6+ {[%clk 0:00:56]} 34. Qe4 {[%clk 0:00:20]}  Qxe4+ {[%clk 0:00:49]} 35. Rxe4 {[%clk 0:00:20]}  Kh7 {[%clk 0:00:49]} 36. h4 {[%clk 0:00:15]}  f5 {[%clk 0:00:47]} 37. Re2 {[%clk 0:00:13]}  e4 {[%clk 0:00:43]} 38. h5 {[%clk 0:00:12]}  Ne5 {[%clk 0:00:43]} 39. Reg2 {[%clk 0:00:10]}  Ng4 {[%clk 0:00:40]} 40. Rd2 {[%clk 0:00:08]}  Re7 {[%clk 0:00:38]} 41. Rd1 {[%clk 0:00:02]}  e3 {[%clk 0:00:37]} 42. Re1 {[%clk 0:00:02]}  Nf2+ {[%clk 0:00:31]} 43. Kg2 {[%clk 0:00:02]}  Nd3 {[%clk 0:00:31]} 44. Re2 {[%clk 0:00:03]}  Nf4+ {[%clk 0:00:30]} 45. Kf3 {[%clk 0:00:03]}  Nxe2 {[%clk 0:00:28]} 46. Kxe2 {[%clk 0:00:03]}  f4 {[%clk 0:00:24]} 47. Rf3 {[%clk 0:00:04]}  Re4 {[%clk 0:00:23]} 48. Bc3 {[%clk 0:00:03]}  a5 {[%clk 0:00:20]} 49. Bf6 {[%clk 0:00:03]}  Kg8 {[%clk 0:00:18]} 50. Bd8 {[%clk 0:00:04]}  Kf7 {[%clk 0:00:17]} 51. Bc7 {[%clk 0:00:05]}  Ke6 {[%clk 0:00:16]} 52. Bxf4 {[%clk 0:00:05]}  a4 {[%clk 0:00:12]} 53. Bxe3 {[%clk 0:00:06]}  axb3 {[%clk 0:00:11]} 54. axb3 {[%clk 0:00:06]}  Rh4 {[%clk 0:00:11]} 55. Kd3 {[%clk 0:00:06]}  Rxh5 {[%clk 0:00:11]} 56. Bxc5 {[%clk 0:00:07]}  bxc5 {[%clk 0:00:10]} 57. Rg3 {[%clk 0:00:07]}  Rg5 {[%clk 0:00:10]} 58. Rh3 {[%clk 0:00:06]}  h5 {[%clk 0:00:10]} 59. Kc3 {[%clk 0:00:06]}  Kf5 {[%clk 0:00:10]} 60. b4 {[%clk 0:00:07]}  cxb4+ {[%clk 0:00:09]} 61. Kxb4 {[%clk 0:00:06]}  Kg4 {[%clk 0:00:09]} 62. Rh1 {[%clk 0:00:07]}  Rf5 {[%clk 0:00:08]} 63. c5 {[%clk 0:00:08]}  h4 {[%clk 0:00:08]} 64. Kb5 {[%clk 0:00:09]}  h3 {[%clk 0:00:08]} 65. Kb6 {[%clk 0:00:09]}  Rf2 {[%clk 0:00:07]} 66. c6 {[%clk 0:00:09]}  Rb2+ {[%clk 0:00:07]} 67. Kc7 {[%clk 0:00:09]}  h2 {[%clk 0:00:07]} 68. Kd7 {[%clk 0:00:09]}  Rd2+ {[%clk 0:00:07]} 69. Kc8 {[%clk 0:00:10]}  Kg3 {[%clk 0:00:07]} 70. c7 {[%clk 0:00:10]}  Kg2 {[%clk 0:00:08]} 71. Rxh2+ {[%clk 0:00:10]}  Kxh2 {[%clk 0:00:08]} 72. Kb8 {[%clk 0:00:11]}  Rb2+ {[%clk 0:00:08]} 73. Kc8 {[%clk 0:00:11]}  Rc2 {[%clk 0:00:08]} 74. Kb8 {[%clk 0:00:12]}  Rxc7 {[%clk 0:00:09]} 75. Kxc7 {[%clk 0:00:12]} 1/2-1/2


[Site "https://www.chess.com"]

[Event "Titled Tuesday Blitz January 25 2022"]
[White "Fawzy, Adham"]
[Black "Sjugirov, Sanan"]
[WhiteFideId "10613129"]
[BlackFideId "4189302"]
[WhiteElo "2510"]
[BlackElo "2602"]
[Result "0-1"]
[Round "06"]
[TimeControl "180+1"]
[Date "2022.01.26"]
[WhiteClock "0:00:01"]
[BlackClock "0:00:04"]

1. e4 {[%clk 0:03:00]}  c5 {[%clk 0:02:59]} 2. c4 {[%clk 0:03:01]}  Nc6 {[%clk 0:02:59]} 3. Nc3 {[%clk 0:03:01]}  g6 {[%clk 0:02:58]} 4. g3 {[%clk 0:03:02]}  Bg7 {[%clk 0:02:59]} 5. Bg2 {[%clk 0:03:03]}  d6 {[%clk 0:02:57]} 6. Nge2 {[%clk 0:03:03]}  e6 {[%clk 0:02:49]} 7. d3 {[%clk 0:03:02]}  Nge7 {[%clk 0:02:49]} 8. Be3 {[%clk 0:03:02]}  Nd4 {[%clk 0:02:47]} 9. O-O {[%clk 0:03:03]}  O-O {[%clk 0:02:46]} 10. Qd2 {[%clk 0:03:03]}  Nec6 {[%clk 0:02:41]} 11. Bh6 {[%clk 0:03:03]}  Bxh6 {[%clk 0:02:33]} 12. Qxh6 {[%clk 0:03:02]}  Rb8 {[%clk 0:02:32]} 13. Nxd4 {[%clk 0:02:44]}  Nxd4 {[%clk 0:02:31]} 14. Qd2 {[%clk 0:02:29]}  a6 {[%clk 0:02:26]} 15. Rab1 {[%clk 0:02:23]}  b5 {[%clk 0:02:19]} 16. cxb5 {[%clk 0:02:23]}  axb5 {[%clk 0:02:20]} 17. b4 {[%clk 0:02:24]}  e5 {[%clk 0:02:05]} 18. f4 {[%clk 0:02:19]}  f6 {[%clk 0:02:03]} 19. Nd5 {[%clk 0:01:57]}  Be6 {[%clk 0:02:00]} 20. Ne3 {[%clk 0:01:57]}  Ra8 {[%clk 0:01:56]} 21. Rb2 {[%clk 0:01:55]}  Ra3 {[%clk 0:01:33]} 22. f5 {[%clk 0:01:55]}  Bf7 {[%clk 0:01:30]} 23. fxg6 {[%clk 0:01:55]}  Bxg6 {[%clk 0:01:08]} 24. Bh3 {[%clk 0:01:36]}  Kg7 {[%clk 0:01:01]} 25. Ng4 {[%clk 0:01:00]}  c4 {[%clk 0:00:40]} 26. Qh6+ {[%clk 0:00:48]}  Kh8 {[%clk 0:00:40]} 27. Rbf2 {[%clk 0:00:48]}  f5 {[%clk 0:00:38]} 28. Ne3 {[%clk 0:00:39]}  f4 {[%clk 0:00:35]} 29. gxf4 {[%clk 0:00:26]}  exf4 {[%clk 0:00:36]} 30. Nd5 {[%clk 0:00:20]}  f3 {[%clk 0:00:33]} 31. Bf5 {[%clk 0:00:15]}  Bxf5 {[%clk 0:00:28]} 32. exf5 {[%clk 0:00:14]}  Nxf5 {[%clk 0:00:29]} 33. Qf4 {[%clk 0:00:12]}  Rxd3 {[%clk 0:00:26]} 34. Qe4 {[%clk 0:00:11]}  Qe8 {[%clk 0:00:13]} 35. Qxe8 {[%clk 0:00:08]}  Rxe8 {[%clk 0:00:14]} 36. Nc7 {[%clk 0:00:07]}  Re5 {[%clk 0:00:07]} 37. Rxf3 {[%clk 0:00:04]}  Rxf3 {[%clk 0:00:08]} 38. Rxf3 {[%clk 0:00:05]}  Kg7 {[%clk 0:00:08]} 39. a4 {[%clk 0:00:04]}  bxa4 {[%clk 0:00:07]} 40. b5 {[%clk 0:00:04]}  Nd4 {[%clk 0:00:06]} 41. Rg3+ {[%clk 0:00:05]}  Kf7 {[%clk 0:00:06]} 42. b6 {[%clk 0:00:06]}  Re1+ {[%clk 0:00:06]} 43. Kg2 {[%clk 0:00:05]}  Rb1 {[%clk 0:00:06]} 44. Nd5 {[%clk 0:00:03]}  Rb5 {[%clk 0:00:04]} 45. Nc3 {[%clk 0:00:01]}  Rxb6 {[%clk 0:00:04]} 46. Nxa4 {[%clk 0:00:02]}  Rb3 {[%clk 0:00:04]} 47. Kh3 {[%clk 0:00:03]}  Rxg3+ {[%clk 0:00:03]} 48. hxg3 {[%clk 0:00:03]}  Ke6 {[%clk 0:00:04]} 49. Nc3 {[%clk 0:00:04]}  Ke5 {[%clk 0:00:03]} 50. Kg4 {[%clk 0:00:04]}  Ne6 {[%clk 0:00:04]} 51. Kf3 {[%clk 0:00:04]}  Kd4 {[%clk 0:00:04]} 52. Nb5+ {[%clk 0:00:04]}  Kd3 {[%clk 0:00:04]} 53. Nxd6 {[%clk 0:00:04]}  c3 {[%clk 0:00:04]} 54. Ne4 {[%clk 0:00:01]}  c2 {[%clk 0:00:04]} 55. Nf2+ {[%clk 0:00:02]}  Kd2 {[%clk 0:00:04]} 56. Ne4+ {[%clk 0:00:03]}  Ke1 {[%clk 0:00:04]} 57. Nf2 {[%clk 0:00:02]}  Nc5 {[%clk 0:00:04]} 58. Nd3+ {[%clk 0:00:01]}  Nxd3 {[%clk 0:00:04]} 0-1


[Site "https://www.chess.com"]

[Event "Titled Tuesday Blitz January 25 2022"]
[White "Garcia Martin, Marta"]
[Black "Papasimakopoulos, Alexandros"]
[WhiteFideId "32084030"]
[BlackFideId "4244125"]
[WhiteElo "2102"]
[BlackElo "2340"]
[Result "1/2-1/2"]
[Round "06"]
[TimeControl "180+1"]
[Date "2022.01.26"]
[WhiteClock "0:00:07"]
[BlackClock "0:00:04"]

1. Nf3 {[%clk 0:03:00]}  f5 {[%clk 0:02:39]} 2. c4 {[%clk 0:02:57]}  Nf6 {[%clk 0:02:38]} 3. Nc3 {[%clk 0:02:56]}  g6 {[%clk 0:02:38]} 4. g3 {[%clk 0:02:40]}  Bg7 {[%clk 0:02:37]} 5. Bg2 {[%clk 0:02:41]}  d6 {[%clk 0:02:37]} 6. d4 {[%clk 0:02:39]}  O-O {[%clk 0:02:37]} 7. O-O {[%clk 0:02:39]}  e6 {[%clk 0:02:37]} 8. Qc2 {[%clk 0:02:35]}  Nc6 {[%clk 0:02:34]} 9. Rd1 {[%clk 0:02:30]}  Bd7 {[%clk 0:02:28]} 10. b3 {[%clk 0:02:26]}  Qe7 {[%clk 0:02:23]} 11. Bb2 {[%clk 0:02:25]}  Nb4 {[%clk 0:02:13]} 12. Qd2 {[%clk 0:02:18]}  a5 {[%clk 0:02:12]} 13. a3 {[%clk 0:02:17]}  Nc6 {[%clk 0:02:11]} 14. Qc2 {[%clk 0:02:14]}  h6 {[%clk 0:01:55]} 15. e4 {[%clk 0:02:09]}  fxe4 {[%clk 0:01:56]} 16. Nxe4 {[%clk 0:02:10]}  Nxe4 {[%clk 0:01:53]} 17. Qxe4 {[%clk 0:02:11]}  Qf7 {[%clk 0:01:54]} 18. Rd2 {[%clk 0:01:33]}  Qf5 {[%clk 0:01:42]} 19. Qxf5 {[%clk 0:01:29]}  gxf5 {[%clk 0:01:32]} 20. Re1 {[%clk 0:01:11]}  Nd8 {[%clk 0:01:22]} 21. Nh4 {[%clk 0:01:07]}  Rb8 {[%clk 0:01:21]} 22. Bc3 {[%clk 0:00:46]}  a4 {[%clk 0:01:05]} 23. b4 {[%clk 0:00:44]}  b5 {[%clk 0:01:01]} 24. c5 {[%clk 0:00:39]}  Re8 {[%clk 0:00:59]} 25. Ng6 {[%clk 0:00:37]}  Kf7 {[%clk 0:00:54]} 26. Nf4 {[%clk 0:00:36]}  dxc5 {[%clk 0:00:25]} 27. bxc5 {[%clk 0:00:34]}  Bc6 {[%clk 0:00:21]} 28. Rde2 {[%clk 0:00:27]}  Bxg2 {[%clk 0:00:20]} 29. Kxg2 {[%clk 0:00:28]}  c6 {[%clk 0:00:08]} 30. Ba5 {[%clk 0:00:28]}  Bxd4 {[%clk 0:00:07]} 31. Bxd8 {[%clk 0:00:26]}  Rbxd8 {[%clk 0:00:06]} 32. Nxe6 {[%clk 0:00:24]}  Rxe6 {[%clk 0:00:03]} 33. Rxe6 {[%clk 0:00:25]}  Bxc5 {[%clk 0:00:03]} 34. Rxc6 {[%clk 0:00:24]}  Bxa3 {[%clk 0:00:04]} 35. Rb1 {[%clk 0:00:18]}  b4 {[%clk 0:00:03]} 36. Ra6 {[%clk 0:00:17]}  Rd2 {[%clk 0:00:02]} 37. Rxa4 {[%clk 0:00:16]}  Rd6 {[%clk 0:00:03]} 38. Ra5 {[%clk 0:00:14]}  Kg6 {[%clk 0:00:03]} 39. Rb5 {[%clk 0:00:12]}  Rc6 {[%clk 0:00:03]} 40. Rb3 {[%clk 0:00:11]}  Re6 {[%clk 0:00:03]} 41. h4 {[%clk 0:00:11]}  h5 {[%clk 0:00:03]} 42. Kf3 {[%clk 0:00:12]}  Rd6 {[%clk 0:00:03]} 43. Re3 {[%clk 0:00:11]}  Rc6 {[%clk 0:00:03]} 44. Ree5 {[%clk 0:00:11]}  Rf6 {[%clk 0:00:04]} 45. Kg2 {[%clk 0:00:09]}  Bb2 {[%clk 0:00:02]} 46. Red5 {[%clk 0:00:08]}  Bc3 {[%clk 0:00:02]} 47. f3 {[%clk 0:00:08]}  Be1 {[%clk 0:00:03]} 48. Kh3 {[%clk 0:00:07]}  Bc3 {[%clk 0:00:04]} 49. Kg2 {[%clk 0:00:07]}  Be1 {[%clk 0:00:03]} 50. Re5 {[%clk 0:00:07]}  Bc3 {[%clk 0:00:04]} 51. Rec5 {[%clk 0:00:08]}  Be1 {[%clk 0:00:04]} 52. Kh3 {[%clk 0:00:04]}  Bc3 {[%clk 0:00:05]} 53. g4 {[%clk 0:00:05]}  fxg4+ {[%clk 0:00:06]} 54. fxg4 {[%clk 0:00:05]}  Rf3+ {[%clk 0:00:06]} 55. Kg2 {[%clk 0:00:06]}  hxg4 {[%clk 0:00:06]} 56. Rg5+ {[%clk 0:00:06]}  Kf6 {[%clk 0:00:05]} 57. Rxg4 {[%clk 0:00:06]}  Rd3 {[%clk 0:00:06]} 58. Rf4+ {[%clk 0:00:04]}  Ke6 {[%clk 0:00:06]} 59. Rf3 {[%clk 0:00:03]}  Rd2+ {[%clk 0:00:06]} 60. Kh3 {[%clk 0:00:04]}  Rd1 {[%clk 0:00:05]} 61. Kg4 {[%clk 0:00:04]}  Kd6 {[%clk 0:00:04]} 62. h5 {[%clk 0:00:04]}  Kc6 {[%clk 0:00:05]} 63. Rbf5 {[%clk 0:00:04]}  Rg1+ {[%clk 0:00:04]} 64. Rg3 {[%clk 0:00:04]}  Rxg3+ {[%clk 0:00:04]} 65. Kxg3 {[%clk 0:00:05]}  b3 {[%clk 0:00:05]} 66. Rf1 {[%clk 0:00:06]}  b2 {[%clk 0:00:04]} 67. h6 {[%clk 0:00:06]}  Kc5 {[%clk 0:00:05]} 68. h7 {[%clk 0:00:05]}  Kb4 {[%clk 0:00:05]} 69. Rh1 {[%clk 0:00:05]}  Be5+ {[%clk 0:00:02]} 70. Kf3 {[%clk 0:00:05]}  Kb3 {[%clk 0:00:02]} 71. Ke4 {[%clk 0:00:05]}  Bc3 {[%clk 0:00:02]} 72. Kf5 {[%clk 0:00:04]}  Bh8 {[%clk 0:00:02]} 73. Kg6 {[%clk 0:00:05]}  Ka2 {[%clk 0:00:02]} 74. Kf7 {[%clk 0:00:05]}  b1=Q {[%clk 0:00:02]} 75. Rxb1 {[%clk 0:00:06]}  Kxb1 {[%clk 0:00:03]} 76. Kg8 {[%clk 0:00:06]}  Bc3 {[%clk 0:00:04]} 77. h8=Q {[%clk 0:00:07]}  Bxh8 {[%clk 0:00:04]} 1/2-1/2


[Site "https://www.chess.com"]

[Event "Titled Tuesday Blitz January 25 2022"]
[White "Gelman, Alexander"]
[Black "Demin, Vladimir"]
[WhiteFideId "4118316"]
[BlackFideId "4167457"]
[WhiteElo "2375"]
[BlackElo "2516"]
[Result "1-0"]
[Round "06"]
[TimeControl "180+1"]
[Date "2022.01.26"]
[WhiteClock "0:00:03"]
[BlackClock "0:00:03"]

1. d4 {[%clk 0:03:00]}  Nf6 {[%clk 0:02:58]} 2. Nc3 {[%clk 0:03:00]}  d5 {[%clk 0:02:57]} 3. Bf4 {[%clk 0:02:59]}  a6 {[%clk 0:02:56]} 4. e3 {[%clk 0:03:00]}  e6 {[%clk 0:02:56]} 5. g4 {[%clk 0:02:59]}  Bb4 {[%clk 0:02:53]} 6. Bg2 {[%clk 0:02:46]}  b5 {[%clk 0:02:52]} 7. g5 {[%clk 0:02:34]}  Ne4 {[%clk 0:02:37]} 8. Bxe4 {[%clk 0:02:34]}  dxe4 {[%clk 0:02:37]} 9. Ne2 {[%clk 0:02:34]}  Bb7 {[%clk 0:02:37]} 10. a3 {[%clk 0:02:29]}  Bd6 {[%clk 0:02:37]} 11. h4 {[%clk 0:02:26]}  Nd7 {[%clk 0:02:35]} 12. Bxd6 {[%clk 0:02:08]}  cxd6 {[%clk 0:02:34]} 13. Ng3 {[%clk 0:02:09]}  d5 {[%clk 0:02:12]} 14. Qg4 {[%clk 0:02:05]}  Rc8 {[%clk 0:02:08]} 15. h5 {[%clk 0:01:59]}  Qa5 {[%clk 0:02:02]} 16. O-O {[%clk 0:01:13]}  O-O {[%clk 0:01:10]} 17. Rac1 {[%clk 0:01:03]}  f5 {[%clk 0:01:04]} 18. gxf6 {[%clk 0:00:45]}  Rxf6 {[%clk 0:01:03]} 19. Nce2 {[%clk 0:00:45]}  Rcf8 {[%clk 0:00:57]} 20. Nf4 {[%clk 0:00:39]}  Qb6 {[%clk 0:00:48]} 21. f3 {[%clk 0:00:32]}  exf3 {[%clk 0:00:46]} 22. Rxf3 {[%clk 0:00:32]}  Qd6 {[%clk 0:00:43]} 23. Rcf1 {[%clk 0:00:30]}  e5 {[%clk 0:00:37]} 24. Nh3 {[%clk 0:00:22]}  Rxf3 {[%clk 0:00:21]} 25. Rxf3 {[%clk 0:00:22]}  Rxf3 {[%clk 0:00:22]} 26. Qxf3 {[%clk 0:00:23]}  e4 {[%clk 0:00:22]} 27. Qg4 {[%clk 0:00:19]}  Nf6 {[%clk 0:00:23]} 28. Qg5 {[%clk 0:00:18]}  Bc8 {[%clk 0:00:16]} 29. Nf4 {[%clk 0:00:17]}  h6 {[%clk 0:00:15]} 30. Qg6 {[%clk 0:00:14]}  Qd7 {[%clk 0:00:12]} 31. Kf2 {[%clk 0:00:06]}  Qc7 {[%clk 0:00:07]} 32. c3 {[%clk 0:00:05]}  a5 {[%clk 0:00:07]} 33. Nf5 {[%clk 0:00:06]}  Bxf5 {[%clk 0:00:07]} 34. Qxf5 {[%clk 0:00:06]}  Qc4 {[%clk 0:00:04]} 35. Qe6+ {[%clk 0:00:05]}  Kh7 {[%clk 0:00:05]} 36. Qf5+ {[%clk 0:00:04]}  Kg8 {[%clk 0:00:05]} 37. Ng6 {[%clk 0:00:03]}  Qd3 {[%clk 0:00:03]} 38. Qc8+ {[%clk 0:00:02]}  Kf7 {[%clk 0:00:03]} 39. Qf8+ {[%clk 0:00:01]}  Ke6 {[%clk 0:00:03]} 40. Qe7+ {[%clk 0:00:02]}  Kf5 {[%clk 0:00:02]} 41. Qe5+ {[%clk 0:00:02]}  Kg4 {[%clk 0:00:02]} 42. Qf4+ {[%clk 0:00:03]}  Kxh5 {[%clk 0:00:03]} 43. Qf5# {[%clk 0:00:03]} 1-0


[Site "https://www.chess.com"]

[Event "Titled Tuesday Blitz January 25 2022"]
[White "Gnechko, Ruslan"]
[Black "Sadhwani, Raunak"]
[WhiteFideId "14135868"]
[BlackFideId "35093487"]
[WhiteElo "2289"]
[BlackElo "2616"]
[Result "0-1"]
[Round "06"]
[TimeControl "180+1"]
[Date "2022.01.26"]
[WhiteClock "0:00:41"]
[BlackClock "0:00:33"]

1. e4 {[%clk 0:03:00]}  e5 {[%clk 0:02:59]} 2. Nf3 {[%clk 0:02:59]}  Nc6 {[%clk 0:03:00]} 3. Bc4 {[%clk 0:02:59]}  d6 {[%clk 0:02:59]} 4. d4 {[%clk 0:02:57]}  exd4 {[%clk 0:03:00]} 5. Nxd4 {[%clk 0:02:57]}  Nf6 {[%clk 0:02:59]} 6. Nc3 {[%clk 0:02:57]}  Be7 {[%clk 0:02:59]} 7. O-O {[%clk 0:02:56]}  O-O {[%clk 0:03:00]} 8. Nxc6 {[%clk 0:02:53]}  bxc6 {[%clk 0:03:00]} 9. b3 {[%clk 0:02:51]}  Nd7 {[%clk 0:02:56]} 10. Bb2 {[%clk 0:02:51]}  Bf6 {[%clk 0:02:55]} 11. Rb1 {[%clk 0:02:50]}  Re8 {[%clk 0:02:51]} 12. Re1 {[%clk 0:02:50]}  Nb6 {[%clk 0:02:44]} 13. Bf1 {[%clk 0:02:49]}  a5 {[%clk 0:02:44]} 14. a4 {[%clk 0:02:44]}  Bb7 {[%clk 0:02:36]} 15. f3 {[%clk 0:02:41]}  h5 {[%clk 0:02:35]} 16. Qd2 {[%clk 0:02:36]}  h4 {[%clk 0:02:35]} 17. Ne2 {[%clk 0:02:29]}  h3 {[%clk 0:02:32]} 18. g3 {[%clk 0:02:26]}  Bxb2 {[%clk 0:02:32]} 19. Rxb2 {[%clk 0:02:25]}  Qf6 {[%clk 0:02:33]} 20. Rbb1 {[%clk 0:02:15]}  Qxf3 {[%clk 0:02:33]} 21. Nd4 {[%clk 0:02:15]}  Qf6 {[%clk 0:02:32]} 22. Bxh3 {[%clk 0:02:13]}  c5 {[%clk 0:02:14]} 23. Nb5 {[%clk 0:02:13]}  Re7 {[%clk 0:02:00]} 24. Re2 {[%clk 0:02:00]}  Rae8 {[%clk 0:02:00]} 25. Rf1 {[%clk 0:02:00]}  Qh6 {[%clk 0:01:36]} 26. Qxh6 {[%clk 0:01:57]}  gxh6 {[%clk 0:01:37]} 27. e5 {[%clk 0:01:46]}  dxe5 {[%clk 0:01:23]} 28. Bf5 {[%clk 0:01:33]}  e4 {[%clk 0:01:21]} 29. Re3 {[%clk 0:01:33]}  Nd5 {[%clk 0:01:20]} 30. Ree1 {[%clk 0:01:28]}  e3 {[%clk 0:01:19]} 31. g4 {[%clk 0:01:17]}  Kg7 {[%clk 0:01:17]} 32. h4 {[%clk 0:01:15]}  Rd8 {[%clk 0:00:57]} 33. Kh2 {[%clk 0:01:07]}  Nb4 {[%clk 0:00:46]} 34. Re2 {[%clk 0:01:00]}  Rd2 {[%clk 0:00:46]} 35. Re1 {[%clk 0:00:59]}  Bf3 {[%clk 0:00:46]} 36. Nc3 {[%clk 0:00:41]}  Bxe2 {[%clk 0:00:43]} 37. Rxe2 {[%clk 0:00:41]}  Na2 {[%clk 0:00:33]} 0-1


[Site "https://www.chess.com"]

[Event "Titled Tuesday Blitz January 25 2022"]
[White "Goltseva, Ekaterina"]
[Black "Szpar, Milosz"]
[WhiteFideId "24173770"]
[BlackFideId "1184989"]
[WhiteElo "2140"]
[BlackElo "2447"]
[Result "0-1"]
[Round "06"]
[TimeControl "180+1"]
[Date "2022.01.26"]
[WhiteClock "0:01:04"]
[BlackClock "0:00:27"]

1. d4 {[%clk 0:02:56]}  Nf6 {[%clk 0:02:59]} 2. Nf3 {[%clk 0:02:56]}  e6 {[%clk 0:02:58]} 3. c4 {[%clk 0:02:56]}  c5 {[%clk 0:02:58]} 4. d5 {[%clk 0:02:56]}  d6 {[%clk 0:02:57]} 5. Nc3 {[%clk 0:02:56]}  exd5 {[%clk 0:02:55]} 6. cxd5 {[%clk 0:02:56]}  g6 {[%clk 0:02:54]} 7. e4 {[%clk 0:02:57]}  Bg7 {[%clk 0:02:53]} 8. Bf4 {[%clk 0:02:56]}  O-O {[%clk 0:02:47]} 9. Bd3 {[%clk 0:02:56]}  Bg4 {[%clk 0:02:38]} 10. O-O {[%clk 0:02:55]}  Nh5 {[%clk 0:02:33]} 11. Be3 {[%clk 0:02:49]}  Nd7 {[%clk 0:02:32]} 12. Be2 {[%clk 0:02:47]}  Bxf3 {[%clk 0:02:27]} 13. Bxf3 {[%clk 0:02:47]}  Nhf6 {[%clk 0:02:23]} 14. Bf4 {[%clk 0:02:46]}  Qe7 {[%clk 0:02:20]} 15. Nb5 {[%clk 0:02:45]}  Ne5 {[%clk 0:02:18]} 16. a4 {[%clk 0:02:42]}  a6 {[%clk 0:01:46]} 17. Nc3 {[%clk 0:02:42]}  Nfd7 {[%clk 0:01:38]} 18. Be2 {[%clk 0:02:33]}  Rab8 {[%clk 0:01:31]} 19. Be3 {[%clk 0:02:32]}  g5 {[%clk 0:01:18]} 20. Ra3 {[%clk 0:02:28]}  Ng6 {[%clk 0:01:15]} 21. Qc1 {[%clk 0:02:25]}  h6 {[%clk 0:01:14]} 22. g3 {[%clk 0:02:09]}  Bxc3 {[%clk 0:01:08]} 23. bxc3 {[%clk 0:02:05]}  Qxe4 {[%clk 0:01:08]} 24. c4 {[%clk 0:02:03]}  Rbe8 {[%clk 0:00:56]} 25. Bd3 {[%clk 0:02:01]}  Qe7 {[%clk 0:00:55]} 26. Qc3 {[%clk 0:01:55]}  f5 {[%clk 0:00:50]} 27. Re1 {[%clk 0:01:51]}  Nde5 {[%clk 0:00:50]} 28. Kg2 {[%clk 0:01:49]}  Qf7 {[%clk 0:00:50]} 29. Raa1 {[%clk 0:01:15]}  f4 {[%clk 0:00:45]} 30. Bxg6 {[%clk 0:01:14]}  Qxg6 {[%clk 0:00:45]} 31. Bxc5 {[%clk 0:01:11]}  f3+ {[%clk 0:00:44]} 32. Kh1 {[%clk 0:01:09]}  Qf5 {[%clk 0:00:44]} 33. Bxd6 {[%clk 0:01:06]}  Qh3 {[%clk 0:00:43]} 34. Rg1 {[%clk 0:01:04]}  Ng4 {[%clk 0:00:27]} 0-1


[Site "https://www.chess.com"]